bitfinex/quotes_BTCUSD_20230109
["timestamp","ask_amount","ask_price","bid_price","bid_amount"]
[1673280797801,0.4328588,17304.0,17301.0,3.75044029]
[1673280798059,0.4328588,17304.0,17301.0,2.91121103]
[1673280798060,0.012,17302.0,17301.0,2.91121103]
[1673280798298,0.012,17302.0,17301.0,3.78104029]
[1673280798822,0.4328588,17304.0,17301.0,3.75104029]
[1673280799091,0.4328588,17304.0,17303.0,0.1656]
[1673280799092,0.4450088,17304.0,17303.0,0.1656]
[1673280799324,0.4450088,17304.0,17303.0,1.105952]
[1673280799567,0.4330088,17304.0,17303.0,0.743534]
[1673280799808,0.4330088,17304.0,17303.0,0.70816761]
[1673280800566,0.4330088,17304.0,17303.0,1.28610161]
[1673280800811,0.4328588,17304.0,17303.0,1.28610161]
[1673280801092,0.7454493,17304.0,17303.0,1.29010161]
[1673280801341,0.4818588,17304.0,17303.0,1.25472861]
[1673280802851,0.4818588,17304.0,17303.0,1.83266261]
[1673280804073,0.4818588,17304.0,17303.0,1.25472861]
[1673280805542,0.65476402,17304.0,17303.0,0.67679461]
[1673280806038,0.65476402,17304.0,17303.0,0.09886061]
[1673280806293,0.91412184,17304.0,17303.0,0.09886061]
[1673280807050,0.92262184,17304.0,17303.0,0.09886061]
[1673280807319,0.91412184,17304.0,17303.0,0.09886061]
[1673280808048,1.25993227,17304.0,17303.0,0.09886061]
[1673280808290,0.91412184,17304.0,17303.0,0.09886061]
[1673280810043,0.91412184,17304.0,17303.0,0.06348185]
[1673280810561,0.92262184,17304.0,17303.0,0.06348185]
[1673280810808,0.66326402,17304.0,17303.0,0.06348185]
[1673280811043,0.4903588,17304.0,17303.0,0.64141585]
[1673280811288,0.4903588,17304.0,17303.0,0.60603685]
[1673280811793,0.4903588,17304.0,17303.0,0.02810285]
[1673280811794,0.66326402,17304.0,17303.0,0.02810285]
[1673280812072,0.66326402,17304.0,17303.0,5.02531985]
[1673280813372,0.4903588,17304.0,17303.0,5.02531985]
[1673280813598,0.66326402,17304.0,17303.0,5.60325385]
[1673280815333,0.4903588,17304.0,17303.0,5.60325385]
[1673280815847,0.66326402,17304.0,17303.0,5.60325385]
[1673280816102,0.4903588,17304.0,17303.0,5.60325385]
[1673280816847,0.4903588,17304.0,17303.0,5.579151]
[1673280818313,0.4903588,17304.0,17303.0,6.157085]
[1673280819634,0.4903588,17304.0,17303.0,6.152085]
[1673280821088,0.4903588,17304.0,17303.0,5.574151]
[1673280821348,0.0575,17304.0,17303.0,5.574151]
[1673280822315,0.0575,17304.0,17303.0,5.48819109]
[1673280823046,0.0575,17304.0,17303.0,6.06612509]
[1673280823781,0.0575,17304.0,17303.0,5.48819109]
[1673280825296,0.23040522,17304.0,17303.0,5.48819109]
[1673280827815,0.22190522,17304.0,17303.0,5.48819109]
[1673280828544,0.48126304,17304.0,17303.0,5.48819109]
[1673280830567,0.22190522,17304.0,17303.0,5.48819109]
[1673280831018,0.049,17304.0,17303.0,5.48819109]
[1673280831760,0.22190522,17304.0,17303.0,4.91025709]
[1673280832075,0.48126304,17304.0,17303.0,4.87487904]
[1673280832328,0.48126304,17304.0,17303.0,4.81777886]
[1673280832579,0.88126304,17304.0,17303.0,4.81777886]
[1673280833638,1.05416825,17304.0,17303.0,4.81777886]
[1673280833884,1.48643129,17304.0,17303.0,4.81777886]
[1673280834148,0.65416825,17304.0,17303.0,4.81777886]
[1673280836581,1.08643129,17304.0,17303.0,4.81777886]
[1673280836828,0.65416825,17304.0,17303.0,4.81777886]
[1673280839834,0.65416825,17304.0,17303.0,5.39571286]
[1673280841148,0.82751995,17304.0,17303.0,4.81777886]
[1673280841387,0.65138925,17304.0,17303.0,4.81777886]
[1673280842839,0.47893365,17304.0,17303.0,4.81777886]
[1673280843082,0.65138925,17304.0,17303.0,4.81777886]
[1673280843323,0.47893286,17304.0,17303.0,4.81777886]
[1673280844023,0.47893286,17304.0,17303.0,4.78239623]
[1673280844800,0.47893286,17304.0,17303.0,5.36033023]
[1673280850068,0.82474329,17304.0,17303.0,5.36033023]
[1673280850334,0.65138925,17304.0,17303.0,5.36033023]
[1673280850572,0.47896846,17304.0,17303.0,5.36033023]
[1673280851106,0.48746974,17304.0,17303.0,5.36033023]
[1673280851805,0.48746974,17304.0,17303.0,5.37692563]
[1673280853540,0.22811192,17304.0,17303.0,5.37692563]
[1673280853783,0.48746974,17304.0,17303.0,5.37692563]
[1673280854766,0.48746974,17304.0,17303.0,5.95485963]
[1673280855011,0.48746974,17304.0,17303.0,6.12185963]
[1673280855269,0.22811192,17304.0,17303.0,6.12185963]
[1673280855782,0.21961192,17304.0,17303.0,6.12185963]
[1673280856614,0.21961192,17304.0,17303.0,6.48432363]
[1673280857361,0.046221,17304.0,17303.0,6.97851657]
[1673280857847,0.046221,17304.0,17303.0,7.55645057]
[1673280858582,0.046221,17304.0,17303.0,7.72768445]
[1673280859078,0.046221,17304.0,17303.0,8.27605795]
[1673280862134,0.046221,17304.0,17303.0,8.10482407]
[1673280862391,0.046221,17304.0,17303.0,8.27605795]
[1673280862624,0.046221,17304.0,17303.0,8.27419695]
[1673280863792,0.046221,17304.0,17303.0,8.10296307]
[1673280864988,0.046221,17304.0,17303.0,8.27419695]
[1673280866722,0.01068289,17305.0,17303.0,8.27419695]
[1673280866966,0.01068289,17305.0,17304.0,0.425472]
[1673280867219,0.01068289,17305.0,17304.0,2.559175]
[1673280868253,0.02268289,17305.0,17304.0,2.595175]
[1673280869232,0.02268289,17305.0,17304.0,2.76753712]
[1673280869473,0.02268289,17305.0,17304.0,3.94196788]
[1673280869718,0.02268289,17305.0,17304.0,4.11320176]
[1673280870461,0.02268289,17305.0,17304.0,3.94196788]
[1673280873455,0.02268289,17305.0,17304.0,4.11320176]
[1673280873696,0.02268289,17305.0,17304.0,4.37005258]
[1673280873945,0.02268289,17305.0,17304.0,5.29177819]
[1673280874207,0.01071424,17306.0,17305.0,0.41255392]
[1673280874450,0.01071424,17306.0,17305.0,5.22690086]
[1673280874696,0.01071424,17306.0,17305.0,4.78447888]
[1673280874948,0.01071424,17306.0,17305.0,3.6086894]
[1673280875233,0.01371424,17306.0,17305.0,3.7276894]
[1673280875472,0.01071424,17306.0,17305.0,3.27079802]
[1673280875732,0.01071424,17306.0,17305.0,2.77660508]
[1673280875986,0.01071424,17306.0,17305.0,2.19873808]
[1673280876489,0.01071424,17306.0,17305.0,1.45217108]
[1673280876744,0.01371424,17306.0,17305.0,1.57117108]
[1673280877257,0.01371424,17306.0,17305.0,0.80875108]
[1673280878019,0.01371424,17306.0,17305.0,1.17121508]
[1673280879834,0.01371424,17306.0,17305.0,0.80891693]
[1673280881555,0.01371424,17306.0,17305.0,1.38678393]
[1673280881797,0.01371424,17306.0,17305.0,1.74924793]
[1673280882037,0.01371424,17306.0,17305.0,1.38678393]
[1673280882277,0.01371424,17306.0,17305.0,2.36465093]
[1673280882513,0.01371424,17306.0,17305.0,2.72711493]
[1673280884471,0.01371424,17306.0,17305.0,3.30498193]
[1673280892647,0.01371424,17306.0,17305.0,3.79917487]
[1673280893139,0.01371424,17306.0,17305.0,4.13806625]
[1673280893643,0.01371424,17306.0,17305.0,4.39574036]
[1673280894424,0.01371424,17306.0,17305.0,4.13806625]
[1673280895226,0.01364886,17306.0,17305.0,4.13806625]
[1673280895454,0.01364886,17306.0,17305.0,3.96627487]
[1673280895921,0.01364886,17306.0,17305.0,4.13806625]
[1673280896689,0.01364886,17306.0,17305.0,4.39574036]
[1673280896937,0.01364886,17306.0,17305.0,4.98744293]
[1673280899181,0.01364886,17306.0,17305.0,5.33100842]
[1673280899424,0.01364886,17306.0,17305.0,5.3310465]
[1673280899673,0.01364886,17306.0,17305.0,5.15921704]
[1673280900176,0.01364886,17306.0,17305.0,5.62621704]
[1673280900425,0.01364886,17306.0,17305.0,5.79692301]
[1673280900668,0.01364886,17306.0,17305.0,5.6262088]
[1673280901702,0.01120046,17307.0,17306.0,0.40820287]
[1673280901951,0.00844846,17307.0,17306.0,4.03573459]
[1673280902202,0.00844846,17307.0,17306.0,4.83604951]
[1673280902461,0.00844846,17307.0,17306.0,10.63660967]
[1673280903215,0.00844846,17307.0,17306.0,10.80838248]
[1673280903461,0.01044846,17307.0,17306.0,10.21184977]
[1673280903726,0.01044846,17307.0,17306.0,10.68360967]
[1673280904959,0.01044846,17307.0,17306.0,12.03217422]
[1673280905239,0.01044846,17307.0,17306.0,13.03217422]
[1673280905474,0.01044846,17307.0,17306.0,13.03198983]
[1673280906916,0.01044846,17307.0,17306.0,12.93324353]
[1673280907168,0.00844846,17307.0,17306.0,7.68826598]
[1673280907429,0.01151172,17308.0,17307.0,0.40615118]
[1673280907682,0.01151172,17308.0,17307.0,4.7098126]
[1673280907916,0.01151172,17308.0,17307.0,5.06771963]
[1673280908433,0.01232229,17311.0,17308.0,0.4]
[1673280908693,0.00015,17310.0,17309.0,3.55714529]
[1673280908939,0.00015,17310.0,17309.0,3.89044529]
[1673280909204,0.00015,17310.0,17309.0,5.37230078]
[1673280909459,0.00015,17310.0,17309.0,5.37234694]
[1673280909707,0.00015,17310.0,17309.0,4.77608632]
[1673280909913,0.00015,17310.0,17309.0,4.54667194]
[1673280910450,0.01232229,17311.0,17309.0,4.54667194]
[1673280910723,0.01232229,17311.0,17310.0,1.18924194]
[1673280910986,0.01232229,17311.0,17310.0,3.56707526]
[1673280911263,0.01232229,17311.0,17310.0,3.26724106]
[1673280911503,0.01232229,17311.0,17310.0,3.56724106]
[1673280911776,0.01232229,17311.0,17310.0,4.81724106]
[1673280912026,0.01232229,17311.0,17310.0,10.61780122]
[1673280912783,0.01232229,17311.0,17310.0,9.31780122]
[1673280913055,0.01232229,17311.0,17310.0,10.03650122]
[1673280913303,0.01232229,17311.0,17310.0,10.33650122]
[1673280913565,0.01232229,17311.0,17310.0,10.93650122]
[1673280913826,0.01232229,17311.0,17310.0,10.03650122]
[1673280914134,0.01232229,17311.0,17310.0,9.87090122]
[1673280916076,0.01232229,17311.0,17310.0,4.07034106]
[1673280917361,0.01232229,17311.0,17310.0,2.99844812]
[1673280917587,0.01232229,17311.0,17310.0,2.83134812]
[1673280920587,0.01232229,17311.0,17310.0,3.40904812]
[1673280921136,0.01232229,17311.0,17310.0,2.83134812]
[1673280921388,0.01232229,17311.0,17310.0,3.90324106]
[1673280923919,0.01232229,17311.0,17310.0,3.40904812]
[1673280924480,0.01232229,17311.0,17310.0,3.90324106]
[1673280924736,0.01232229,17311.0,17310.0,4.06944106]
[1673280924997,0.01232229,17311.0,17310.0,4.36944106]
[1673280926323,0.01232229,17311.0,17310.0,3.84700774]
[1673280926587,0.0128812,17312.0,17311.0,0.00739874]
[1673280926872,0.0128812,17312.0,17311.0,11.09742165]
[1673280927118,0.0128812,17312.0,17311.0,11.94408967]
[1673280927374,0.0128812,17312.0,17311.0,11.35468267]
[1673280927594,0.0128812,17312.0,17311.0,12.12681815]
[1673280927904,0.0128812,17312.0,17311.0,12.82703161]
[1673280928443,0.0128812,17312.0,17311.0,12.23781815]
[1673280928946,0.0128812,17312.0,17311.0,12.37681815]
[1673280929742,0.0128812,17312.0,17311.0,12.96322949]
[1673280930255,0.0128812,17312.0,17311.0,12.36322949]
[1673280930510,0.0128812,17312.0,17311.0,11.51955713]
[1673280931035,0.0128812,17312.0,17311.0,12.96327574]
[1673280931276,0.0128812,17312.0,17311.0,12.96360657]
[1673280931523,0.0128812,17312.0,17311.0,12.36360657]
[1673280932090,0.0128812,17312.0,17311.0,6.56304641]
[1673280932792,0.01844057,17313.0,17312.0,5.16765403]
[1673280933054,0.01844057,17313.0,17312.0,8.92258777]
[1673280933289,0.01844057,17313.0,17312.0,8.62258777]
[1673280933542,0.01844057,17313.0,17312.0,8.92258777]
[1673280934025,0.01844057,17313.0,17312.0,9.31258777]
[1673280934272,0.01844057,17313.0,17312.0,10.31258777]
[1673280934527,0.01844057,17313.0,17312.0,10.48384558]
[1673280934782,0.01844057,17313.0,17312.0,9.48384558]
[1673280935050,0.01844057,17313.0,17312.0,9.18384558]
[1673280935282,0.01844057,17313.0,17312.0,9.48384558]
[1673280936033,0.01844057,17313.0,17312.0,9.01258777]
[1673280936287,0.01844057,17313.0,17312.0,9.48384558]
[1673280936549,0.01844057,17313.0,17312.0,9.48401136]
[1673280936805,0.01844057,17313.0,17312.0,9.18401136]
[1673280937317,0.01844057,17313.0,17312.0,9.48401136]
[1673280937813,0.01844057,17313.0,17312.0,9.44864182]
[1673280938819,0.01844057,17313.0,17312.0,10.70596284]
[1673280939071,0.01844057,17313.0,17312.0,9.44870182]
[1673280939334,0.01844057,17313.0,17312.0,10.70596284]
[1673280939588,0.01844057,17313.0,17312.0,11.29891422]
[1673280940349,0.01844057,17313.0,17312.0,11.38501695]
[1673280940596,0.01844057,17313.0,17312.0,11.55677755]
[1673280940854,0.01844057,17313.0,17312.0,12.15677755]
[1673280941132,0.01844057,17313.0,17312.0,10.72832366]
[1673280941392,0.01844057,17313.0,17312.0,10.38531144]
[1673280942397,0.01844057,17313.0,17312.0,11.38531144]
[1673280942666,0.01844057,17313.0,17312.0,11.81375914]
[1673280942902,0.01844057,17313.0,17312.0,11.55677755]
[1673280943176,0.01844057,17313.0,17312.0,10.55677755]
[1673280943733,0.01835497,17313.0,17312.0,10.55677755]
[1673280944222,0.01835497,17313.0,17312.0,11.55677755]
[1673280944471,0.01835497,17313.0,17312.0,10.93803702]
[1673280944773,0.01835497,17313.0,17312.0,12.02903469]
[1673280945023,0.01835497,17313.0,17312.0,12.19995078]
[1673280945273,0.01835497,17313.0,17312.0,11.6317332]
[1673280945790,0.01835497,17313.0,17312.0,12.59401854]
[1673280946095,0.01835497,17313.0,17312.0,13.2608723]
[1673280946309,0.00404299,17314.0,17313.0,0.40753762]
[1673280946556,0.00015,17315.0,17314.0,0.43203342]
[1673280946815,0.00015,17315.0,17314.0,6.29632521]
[1673280947059,0.00015,17315.0,17314.0,6.03909326]
[1673280947312,0.00015,17315.0,17314.0,6.03891648]
[1673280947571,0.00015,17315.0,17314.0,5.35770793]
[1673280947862,0.00015,17315.0,17314.0,5.36510115]
[1673280948391,0.01315349,17316.0,17314.0,5.36510115]
[1673280948652,0.01315349,17316.0,17315.0,1.08720903]
[1673280948928,0.01315349,17316.0,17315.0,1.38720903]
[1673280949175,0.01315349,17316.0,17315.0,1.96474203]
[1673280949421,0.01315349,17316.0,17315.0,2.58860818]
[1673280949669,0.01315349,17316.0,17315.0,2.89439227]
[1673280949943,0.01315349,17316.0,17315.0,3.14439227]
[1673280950175,0.01315349,17316.0,17315.0,3.23739227]
[1673280950425,0.01315349,17316.0,17315.0,2.93755802]
[1673280950670,0.01315349,17316.0,17315.0,2.76617393]
[1673280950921,0.01344057,17317.0,17316.0,5.97000914]
[1673280951185,0.01344057,17317.0,17316.0,7.39969822]
[1673280951429,0.01344057,17317.0,17316.0,6.90971914]
[1673280951949,0.01344057,17317.0,17316.0,7.33721914]
[1673280952706,0.01344057,17317.0,17316.0,7.35921914]
[1673280952943,0.01344057,17317.0,17316.0,6.99700914]
[1673280953196,0.01344057,17317.0,17316.0,7.35933114]
[1673280953429,0.01344057,17317.0,17316.0,6.99700914]
[1673280953693,0.01344057,17317.0,17316.0,7.35933114]
[1673280954189,0.01344057,17317.0,17316.0,6.41950914]
[1673280954726,0.01344057,17317.0,17316.0,5.84200914]
[1673280955473,0.01344057,17317.0,17316.0,6.41950914]
[1673280957770,0.01344057,17317.0,17316.0,6.99700914]
[1673280958777,0.02194057,17317.0,17316.0,6.41950914]
[1673280962287,0.02194057,17317.0,17316.0,6.41967488]
[1673280962541,0.02194057,17317.0,17316.0,6.99717488]
[1673280963561,0.19533149,17317.0,17316.0,5.17299035]
[1673280964083,0.45468931,17317.0,17316.0,5.14835617]
[1673280964335,0.19533149,17317.0,17316.0,5.14835617]
[1673280964840,0.02194057,17317.0,17316.0,6.99832436]
[1673280965084,0.02194057,17317.0,17316.0,7.36064636]
[1673280965837,0.02194057,17317.0,17316.0,6.99832436]
[1673280967099,0.35503127,17318.0,17317.0,4.71034392]
[1673280967352,0.61438909,17318.0,17317.0,4.71034392]
[1673280967850,0.7868086,17318.0,17317.0,4.71034392]
[1673280968106,0.7868086,17318.0,17317.0,4.96034392]
[1673280968868,0.95971382,17318.0,17317.0,4.96034392]
[1673280969114,1.21929798,17318.0,17317.0,4.9861346]
[1673280969364,0.62277489,17318.0,17317.0,4.9861346]
[1673280970130,0.36319073,17318.0,17317.0,4.9861346]
[1673280970419,0.62277489,17318.0,17317.0,5.5636016]
[1673280970682,0.36319073,17318.0,17317.0,5.5636016]
[1673280970971,0.19014035,17318.0,17317.0,6.31343072]
[1673280971241,0.19014035,17318.0,17317.0,7.02591436]
[1673280971515,0.01454035,17318.0,17317.0,7.50995228]
[1673280972531,0.01454035,17318.0,17317.0,7.02591436]
[1673280973052,0.01454035,17318.0,17317.0,7.50995228]
[1673280973866,0.01454035,17318.0,17317.0,7.02591436]
[1673280974960,0.01454035,17318.0,17317.0,7.60338136]
[1673280976012,0.01454035,17318.0,17317.0,8.08741928]
[1673280976266,0.01454035,17318.0,17317.0,8.25880337]
[1673280976507,0.01454035,17318.0,17317.0,7.60338136]
[1673280977017,0.01454035,17318.0,17317.0,7.59338136]
[1673280977539,0.01454035,17318.0,17317.0,7.59354709]
[1673280979073,0.01454035,17318.0,17317.0,8.67758501]
[1673280979316,0.01454035,17318.0,17317.0,8.07758501]
[1673280980068,0.01454035,17318.0,17317.0,8.67758501]
[1673280980316,0.01454035,17318.0,17317.0,10.69077787]
[1673280980579,0.01454035,17318.0,17317.0,9.99077787]
[1673280981840,0.01454035,17318.0,17317.0,10.99077787]
[1673280982122,0.01454035,17318.0,17317.0,11.13077787]
[1673280982397,0.01454035,17319.0,17318.0,0.00861119]
[1673280982659,0.01454035,17319.0,17318.0,3.65848581]
[1673280982900,0.01454035,17319.0,17318.0,3.90892332]
[1673280983142,0.01454035,17319.0,17318.0,5.37413359]
[1673280983417,0.01454035,17319.0,17318.0,5.20248288]
[1673280983663,0.01454035,17319.0,17318.0,4.88496139]
[1673280983941,0.01454035,17319.0,17318.0,5.12205084]
[1673280984170,0.0208053,17323.0,17319.0,0.42040543]
[1673280984462,0.0208053,17323.0,17320.0,5.22204271]
[1673280984683,0.0208053,17323.0,17321.0,0.70664892]
[1673280984934,0.0208053,17323.0,17322.0,1.516811]
[1673280985185,0.0208053,17323.0,17322.0,1.916811]
[1673280985448,0.0208053,17323.0,17322.0,1.516811]
[1673280985798,0.25848319,17323.0,17321.0,0.65724543]
[1673280985984,0.76792127,17323.0,17322.0,0.39]
[1673280986244,0.77642127,17323.0,17322.0,0.39]
[1673280986490,1.13874327,17323.0,17322.0,0.39]
[1673280986727,0.77642127,17323.0,17322.0,0.25]
[1673280986991,0.77842127,17323.0,17322.0,0.25]
[1673280987245,1.30724327,17323.0,17322.0,0.25]
[1673280988038,1.30524327,17323.0,17322.0,0.25]
[1673280988563,1.30524327,17323.0,17322.0,0.289]
[1673280989320,1.30524327,17323.0,17322.0,0.23853904]
[1673280989321,1.64419365,17323.0,17322.0,0.23853904]
[1673280989628,2.04419365,17323.0,17322.0,0.23853904]
[1673280989885,3.3343374,17323.0,17322.0,0.18806104]
[1673280990102,4.28622161,17323.0,17322.0,0.18806104]
[1673280990618,5.35839691,17323.0,17322.0,0.18806104]
[1673280991120,5.70357364,17323.0,17322.0,0.14906104]
[1673280991382,5.38839691,17323.0,17322.0,0.15506104]
[1673280991630,5.38839691,17323.0,17322.0,0.14906104]
[1673280991631,5.35839691,17323.0,17322.0,0.14906104]
[1673280991895,5.38839691,17323.0,17322.0,0.15906104]
[1673280992135,4.19059691,17323.0,17322.0,0.14906104]
[1673280992384,4.19059691,17323.0,17322.0,0.16006104]
[1673280992385,4.22059691,17323.0,17322.0,0.16006104]
[1673280993167,4.74013691,17323.0,17322.0,0.16006104]
[1673280993671,4.30787387,17323.0,17322.0,0.16006104]
[1673280994467,4.82658952,17323.0,17322.0,0.16006104]
[1673280994966,4.81808952,17323.0,17322.0,0.06821624]
[1673280995470,4.87841094,17323.0,17322.0,0.06821624]
[1673280998297,4.75520234,17323.0,17322.0,0.0177556]
[1673280998802,0.4,17322.0,17319.0,0.02040543]
[1673280999064,1.25730048,17320.0,17319.0,0.02040543]
[1673280999315,3.56682194,17320.0,17319.0,0.02040543]
[1673280999566,3.69731885,17320.0,17319.0,0.02040543]
[1673280999820,3.69731885,17320.0,17319.0,0.27040543]
[1673281000083,3.69731885,17320.0,17319.0,0.28640543]
[1673281000337,4.692756,17320.0,17319.0,0.28640543]
[1673281000589,4.17480576,17320.0,17319.0,0.28640543]
[1673281000836,4.69151779,17320.0,17319.0,0.28640543]
[1673281001087,4.69151779,17320.0,17319.0,0.27040543]
[1673281001343,4.82751779,17320.0,17319.0,0.27240543]
[1673281001865,0.410337,17319.0,17318.0,0.0315891]
[1673281002120,3.60182074,17319.0,17318.0,0.00861119]
[1673281002891,4.12148074,17319.0,17318.0,0.00861119]
[1673281003758,4.34457616,17319.0,17318.0,0.00861119]
[1673281004001,5.8627264,17319.0,17317.0,4.70034392]
[1673281004246,3.7885367,17318.0,17317.0,4.70034392]
[1673281004488,5.16285437,17318.0,17317.0,4.70034392]
[1673281005504,5.81780461,17318.0,17317.0,3.33597072]
[1673281005747,5.81780461,17318.0,17317.0,3.33497072]
[1673281005748,5.68080461,17318.0,17317.0,3.33497072]
[1673281006007,5.68080461,17318.0,17317.0,2.94587072]
[1673281006008,7.04956141,17318.0,17317.0,2.94587072]
[1673281006258,7.95909067,17318.0,17317.0,2.94587072]
[1673281006509,7.04956141,17318.0,17317.0,2.94587072]
[1673281006759,7.43124601,17318.0,17317.0,2.94587072]
[1673281007004,8.48713596,17318.0,17317.0,2.94587072]
[1673281007267,7.85675109,17318.0,17317.0,2.90097229]
[1673281007515,9.07917784,17318.0,17317.0,1.58550466]
[1673281007763,8.92793032,17318.0,17317.0,1.58550466]
[1673281008016,9.50790864,17318.0,17317.0,1.58550466]
[1673281008279,9.56357353,17318.0,17317.0,1.58550466]
[1673281008790,9.56350394,17318.0,17317.0,1.58550466]
[1673281009884,7.41034816,17318.0,17317.0,1.58550466]
[1673281010181,7.81811931,17318.0,17316.0,4.85053589]
[1673281010467,7.81811931,17318.0,17316.0,4.14561389]
[1673281010468,2.90622855,17317.0,17316.0,4.14561389]
[1673281010710,4.03992855,17317.0,17316.0,3.48048589]
[1673281010990,5.13727558,17317.0,17316.0,2.81877289]
[1673281011252,5.30010111,17317.0,17316.0,1.81587889]
[1673281011506,5.30010111,17317.0,17316.0,1.49467289]
[1673281011768,5.79052208,17317.0,17316.0,1.49467289]
[1673281012041,5.79052208,17317.0,17316.0,1.48897289]
[1673281012531,4.77437558,17317.0,17316.0,1.48897289]
[1673281013807,4.77437558,17317.0,17316.0,0.89740089]
[1673281014088,4.77437558,17317.0,17316.0,0.20329189]
[1673281014623,4.77437558,17317.0,17315.0,0.01]
[1673281014854,3.84950844,17316.0,17315.0,0.01]
[1673281015114,3.89182041,17316.0,17315.0,0.01]
[1673281015366,4.93132041,17316.0,17315.0,0.01]
[1673281015643,4.93132041,17316.0,17315.0,0.00900001]
[1673281015886,4.71696264,17316.0,17315.0,0.00900001]
[1673281016775,4.60666264,17316.0,17315.0,0.00900001]
[1673281016932,4.60666264,17316.0,17315.0,0.00657371]
[1673281016933,4.82099765,17316.0,17315.0,0.00657371]
[1673281017193,4.87890468,17316.0,17315.0,0.00657371]
[1673281017441,4.66453877,17316.0,17315.0,0.00657371]
[1673281017710,4.83632219,17316.0,17315.0,0.00657371]
[1673281017961,4.6294544,17316.0,17315.0,0.00657371]
[1673281019230,5.01588635,17316.0,17315.0,0.00657371]
[1673281019994,4.97361547,17316.0,17315.0,7.1e-07]
[1673281020256,4.97361547,17316.0,17313.0,0.00469972]
[1673281020527,0.721,17314.0,17313.0,0.00469972]
[1673281020767,2.37726967,17314.0,17313.0,0.00469972]
[1673281021029,4.22548167,17314.0,17313.0,0.00469972]
[1673281021527,4.56540589,17314.0,17313.0,0.00469972]
[1673281021775,4.67590589,17314.0,17313.0,0.00469972]
[1673281022027,5.39129695,17314.0,17313.0,0.00469972]
[1673281022274,5.25529695,17314.0,17313.0,0.00469972]
[1673281022521,5.39129695,17314.0,17313.0,0.00469972]
[1673281022767,5.25529695,17314.0,17313.0,0.00469972]
[1673281023013,5.39229695,17314.0,17313.0,0.00469972]
[1673281023261,5.64987273,17314.0,17313.0,0.00469972]
[1673281023545,5.39229695,17314.0,17313.0,0.00469972]
[1673281023792,5.39229695,17314.0,17311.0,0.00536748]
[1673281023793,5.64987273,17314.0,17311.0,0.00536748]
[1673281024068,0.6101,17312.0,17311.0,0.00536748]
[1673281024298,3.74463767,17312.0,17311.0,0.00536748]
[1673281024571,4.1025447,17312.0,17311.0,0.00536748]
[1673281024798,4.53185679,17312.0,17311.0,0.00536748]
[1673281025058,5.11124785,17312.0,17311.0,0.00536748]
[1673281025318,5.28337874,17312.0,17311.0,0.00536748]
[1673281025588,1.00764,17311.0,17310.0,0.00442961]
[1673281025850,4.04411181,17311.0,17310.0,0.00442961]
[1673281026098,3.93267819,17311.0,17310.0,0.00442961]
[1673281026349,4.46415683,17311.0,17310.0,0.00442961]
[1673281026898,4.63595997,17311.0,17310.0,0.00442961]
[1673281027117,4.89353575,17311.0,17310.0,0.00442961]
[1673281027653,3.54767819,17311.0,17310.0,0.17679173]
[1673281027907,2.93841819,17311.0,17310.0,0.00442961]
[1673281028681,2.80141819,17311.0,17310.0,0.00442961]
[1673281028937,2.72664771,17311.0,17310.0,0.00442961]
[1673281029188,2.86264771,17311.0,17310.0,0.00442961]
[1673281029704,3.16264771,17311.0,17310.0,0.00442961]
[1673281030491,2.56870004,17311.0,17310.0,0.00442961]
[1673281032522,3.16264771,17311.0,17310.0,0.00442961]
[1673281032774,3.27354771,17311.0,17310.0,0.00442961]
[1673281033526,3.73568071,17311.0,17310.0,0.00442961]
[1673281033781,4.34578071,17311.0,17310.0,0.00442961]
[1673281034052,4.34578071,17311.0,17310.0,0.02684805]
[1673281034293,4.83306666,17311.0,17310.0,0.02684805]
[1673281034563,5.17693386,17311.0,17310.0,0.02684805]
[1673281034841,5.00513072,17311.0,17310.0,0.02684805]
[1673281035342,5.21975712,17311.0,17310.0,0.02684805]
[1673281035586,5.17738895,17311.0,17310.0,0.02416325]
[1673281035927,5.17738895,17311.0,17309.0,0.00551804]
[1673281035928,1.0101,17310.0,17309.0,0.00551804]
[1673281036122,2.78410857,17310.0,17309.0,0.00551804]
[1673281036368,5.28361879,17310.0,17309.0,0.00551804]
[1673281036603,5.45525128,17310.0,17309.0,0.00551804]
[1673281036875,5.15337574,17310.0,17309.0,0.00551804]
[1673281037182,5.29037574,17310.0,17309.0,0.02230203]
[1673281037933,4.86054173,17310.0,17309.0,0.02230203]
[1673281038183,4.86054173,17310.0,17308.0,0.00551764]
[1673281038447,3.28102399,17309.0,17308.0,0.00551764]
[1673281038709,4.66758499,17309.0,17308.0,0.00551764]
[1673281038970,4.32313744,17309.0,17308.0,0.00551764]
[1673281039466,3.892578,17309.0,17308.0,0.00551764]
[1673281039718,4.02347766,17309.0,17308.0,0.00551764]
[1673281039970,4.5841358,17309.0,17308.0,0.00551764]
[1673281040224,4.32568835,17309.0,17308.0,0.00551764]
[1673281040486,4.46268835,17309.0,17308.0,0.00551764]
[1673281040737,4.29023791,17309.0,17308.0,0.00551764]
[1673281041248,4.50509025,17309.0,17308.0,0.00551764]
[1673281041514,4.56546516,17309.0,17308.0,0.00551764]
[1673281041762,4.52086131,17309.0,17308.0,0.00551764]
[1673281042020,4.08996165,17309.0,17308.0,0.0252472]
[1673281042531,4.52092921,17309.0,17308.0,0.0252472]
[1673281042784,4.08996165,17309.0,17308.0,0.0252472]
[1673281043037,4.92359984,17309.0,17308.0,0.0252472]
[1673281043805,4.57883665,17309.0,17308.0,0.0252472]
[1673281045063,4.14786868,17309.0,17308.0,0.0252472]
[1673281045608,4.66409582,17309.0,17308.0,0.02272249]
[1673281047907,4.52709582,17309.0,17308.0,0.02272249]
[1673281047908,4.22709582,17309.0,17308.0,0.02272249]
[1673281048126,3.67876165,17309.0,17308.0,0.02272249]
[1673281048337,3.19270748,17309.0,17308.0,0.02272249]
[1673281048492,3.62411606,17309.0,17308.0,0.02272249]
[1673281048995,1.95102016,17309.0,17308.0,0.02272249]
[1673281049223,1.59624647,17309.0,17308.0,0.02272249]
[1673281049478,1.69912641,17309.0,17308.0,0.02272249]
[1673281049948,2.04424429,17309.0,17308.0,0.02272249]
[1673281050203,1.87169382,17309.0,17308.0,0.02272249]
[1673281050430,2.27169382,17309.0,17308.0,0.02272249]
[1673281050899,2.48675858,17309.0,17308.0,0.02272249]
[1673281051149,0.4,17308.0,17305.0,0.117507]
[1673281051407,0.87497132,17307.0,17305.0,0.117507]
[1673281051656,0.362322,17306.0,17305.0,0.117507]
[1673281051895,0.662322,17306.0,17305.0,0.117507]
[1673281052150,0.662322,17306.0,17305.0,0.006307]
[1673281052648,0.762322,17306.0,17305.0,0.006307]
[1673281052913,0.96194233,17306.0,17305.0,0.006307]
[1673281053145,1.09794233,17306.0,17305.0,0.006307]
[1673281053385,1.56020933,17306.0,17305.0,0.006307]
[1673281053614,1.73296593,17306.0,17305.0,0.006307]
[1673281053869,2.19523293,17306.0,17305.0,0.006307]
[1673281054094,2.45420692,17306.0,17305.0,0.006307]
[1673281054852,2.45420692,17306.0,17305.0,0.02515747]
[1673281055353,1.9956126,17306.0,17305.0,0.02515747]
[1673281055592,1.59552188,17306.0,17305.0,0.02515747]